bitfinex/quotes_BTCUSD_20240929
["timestamp","ask_amount","ask_price","bid_price","bid_amount"]
[1727580481080,0.001656,65946.0,65945.0,1.28362666]
[1727580481982,0.001656,65946.0,65945.0,1.26530929]
[1727580482212,0.001656,65946.0,65945.0,1.27670727]
[1727580482700,0.001656,65946.0,65945.0,1.14787216]
[1727580482915,0.001656,65946.0,65945.0,1.27670727]
[1727580485452,0.001656,65946.0,65945.0,1.41324216]
[1727580487080,0.001656,65946.0,65945.0,1.43153115]
[1727580487547,0.001656,65946.0,65945.0,1.39722259]
[1727580492596,0.001656,65946.0,65945.0,1.56251053]
[1727580492811,0.001656,65946.0,65945.0,1.42597564]
[1727580496811,0.001656,65946.0,65945.0,1.42556834]
[1727580499274,0.00074372,65946.0,65945.0,1.42556834]
[1727580509705,0.00074372,65946.0,65945.0,1.31073323]
[1727580509931,0.00074372,65946.0,65945.0,1.42556834]
[1727580510166,0.00074372,65946.0,65945.0,1.41156834]
[1727580510631,0.00074372,65946.0,65945.0,1.42556834]
[1727580511541,0.00074372,65946.0,65945.0,1.4254799]
[1727580511752,0.00074372,65946.0,65945.0,1.4114799]
[1727580511963,0.00074372,65946.0,65945.0,1.41147991]
[1727580512198,0.00074372,65946.0,65945.0,1.42547991]
[1727580515127,0.00074372,65946.0,65945.0,1.3106448]
[1727580515375,0.00074372,65946.0,65945.0,1.42547991]
[1727580515816,0.00074372,65946.0,65945.0,1.39747991]
[1727580516039,0.00074372,65946.0,65945.0,1.42547991]
[1727580516535,0.00074372,65946.0,65945.0,1.39747991]
[1727580516773,0.00074372,65946.0,65945.0,1.41147991]
[1727580516995,0.00074372,65946.0,65945.0,1.42547991]
[1727580521699,0.00074372,65946.0,65945.0,1.42550714]
[1727580523718,0.00074372,65946.0,65945.0,1.42633414]
[1727580527376,0.00074372,65946.0,65945.0,1.31149903]
[1727580527604,0.00074372,65946.0,65945.0,1.42633414]
[1727580531319,0.00074372,65946.0,65945.0,1.41633414]
[1727580531536,0.00074372,65946.0,65945.0,1.42633414]
[1727580533840,0.00074372,65946.0,65945.0,1.41633414]
[1727580534071,0.00074372,65946.0,65945.0,1.42633414]
[1727580536516,0.00074372,65946.0,65945.0,1.42567537]
[1727580539876,0.00074372,65946.0,65945.0,1.31084026]
[1727580540078,0.00074372,65946.0,65945.0,1.42567537]
[1727580541011,0.00074372,65946.0,65945.0,1.42565411]
[1727580543055,0.00074372,65946.0,65945.0,1.42065411]
[1727580543971,0.00074372,65946.0,65945.0,1.41565411]
[1727580544928,0.00074372,65946.0,65945.0,1.41556019]
[1727580549854,0.00074372,65946.0,65945.0,1.43139324]
[1727580551643,0.00074372,65946.0,65945.0,1.33159324]
[1727580551898,0.09844372,65946.0,65945.0,0.97827019]
[1727580552123,0.09844372,65946.0,65945.0,1.22781159]
[1727580552370,0.09844372,65946.0,65945.0,1.0911053]
[1727580552586,0.09844372,65946.0,65945.0,1.03629478]
[1727580552808,0.09844372,65946.0,65945.0,1.02429478]
[1727580553037,0.09844372,65946.0,65945.0,1.01029478]
[1727580553260,0.09844372,65946.0,65945.0,1.02429478]
[1727580554199,0.09844372,65946.0,65945.0,1.03829478]
[1727580554667,0.09844372,65946.0,65945.0,1.03685984]
[1727580555371,0.09844372,65946.0,65945.0,1.02102679]
[1727580559703,0.00074372,65946.0,65945.0,1.01902679]
[1727580559919,0.00074372,65946.0,65945.0,1.02102679]
[1727580564578,0.00074372,65946.0,65945.0,1.01902679]
[1727580567011,0.00074372,65946.0,65945.0,1.02102679]
[1727580571792,0.00074372,65946.0,65945.0,1.02082368]
[1727580572689,0.00074372,65946.0,65945.0,1.01882368]
[1727580574463,0.00074372,65946.0,65945.0,1.02082368]
[1727580579448,0.00074372,65946.0,65945.0,1.02084551]
[1727580584597,0.00074372,65946.0,65945.0,1.02086439]
[1727580586649,0.00074372,65946.0,65945.0,1.07569074]
[1727580589431,0.00074372,65946.0,65945.0,1.15469342]
[1727580603043,0.00074372,65946.0,65945.0,1.40568136]
[1727580604929,0.00074372,65946.0,65945.0,1.40368136]
[1727580605169,0.00074372,65946.0,65945.0,1.40568136]
[1727580608667,0.00074372,65946.0,65945.0,1.30998136]
[1727580609850,0.00074372,65946.0,65945.0,0.95815831]
[1727580609851,0.07646372,65946.0,65945.0,0.95815831]
[1727580610065,0.07646372,65946.0,65945.0,1.07299342]
[1727580610311,0.07646372,65946.0,65945.0,1.07499342]
[1727580610772,0.07646372,65946.0,65945.0,1.07299342]
[1727580611443,0.07646372,65946.0,65945.0,1.07499342]
[1727580611945,0.07646372,65946.0,65945.0,1.07299342]
[1727580612623,0.07646372,65946.0,65945.0,1.07499342]
[1727580613536,0.07646372,65946.0,65945.0,1.07299342]
[1727580614001,0.07646372,65946.0,65945.0,1.07499342]
[1727580616291,0.07646372,65946.0,65945.0,1.07299342]
[1727580616966,0.07646372,65946.0,65945.0,1.07499342]
[1727580618102,0.07646372,65946.0,65945.0,1.02016707]
[1727580618590,0.07646372,65946.0,65945.0,1.01816707]
[1727580619465,0.07646372,65946.0,65945.0,1.07499462]
[1727580619924,0.07646372,65946.0,65945.0,1.02016707]
[1727580620383,0.07646372,65946.0,65945.0,1.01816707]
[1727580620842,0.07646372,65946.0,65945.0,1.02016707]
[1727580621571,0.07646372,65946.0,65945.0,1.01816707]
[1727580627397,0.07646372,65946.0,65945.0,1.01841224]
[1727580628059,0.07646372,65946.0,65945.0,1.02041224]
[1727580631883,0.07646372,65946.0,65945.0,1.0197208]
[1727580632347,0.07646372,65946.0,65945.0,1.01972023]
[1727580637400,0.07646372,65946.0,65945.0,1.07454587]
[1727580640966,0.07646372,65946.0,65945.0,1.07254587]
[1727580641181,0.07646372,65946.0,65945.0,1.07454587]
[1727580641407,0.07646372,65946.0,65945.0,1.01772023]
[1727580642292,0.07646372,65946.0,65945.0,1.07253733]
[1727580642719,0.07646372,65946.0,65945.0,1.01771056]
[1727580642939,0.07646372,65946.0,65945.0,1.07253744]
[1727580643572,0.07646372,65946.0,65945.0,1.07453744]
[1727580643865,0.07646372,65946.0,65945.0,1.07253744]
[1727580653350,0.07146372,65946.0,65945.0,1.07253744]
[1727580656747,0.0969,65951.0,65950.0,0.15163]
[1727580656969,0.0969,65951.0,65950.0,0.61991708]
[1727580658108,0.0969,65951.0,65950.0,0.63391708]
[1727580659701,0.0969,65951.0,65950.0,0.64791708]
[1727580661045,0.16842,65951.0,65950.0,0.64791708]
[1727580663169,0.16842,65951.0,65950.0,0.53308197]
[1727580663395,0.24712,65951.0,65950.0,0.23121475]
[1727580663657,0.24712,65951.0,65950.0,0.12515595]
[1727580664169,0.24712,65951.0,65950.0,0.07958475]
[1727580665951,0.248774,65951.0,65950.0,0.23121475]
[1727580666937,0.248774,65951.0,65950.0,0.34604986]
[1727580669889,0.46329636,65951.0,65950.0,0.07958475]
[1727580670628,0.46329636,65951.0,65950.0,0.028]
[1727580670887,0.46329636,65951.0,65950.0,0.014]
[1727580671363,0.46329636,65951.0,65950.0,0.006]
[1727580671591,0.1687,65948.0,65946.0,0.000827]
[1727580671814,0.0917,65947.0,65946.0,0.000827]
[1727580673471,0.0917,65947.0,65946.0,0.010827]
[1727580673689,0.0917,65947.0,65946.0,0.019827]
[1727580674150,0.0917,65947.0,65946.0,0.010827]
[1727580674385,0.0917,65947.0,65946.0,0.020827]
[1727580685917,0.0917,65947.0,65946.0,0.07524665]
[1727580691928,0.093354,65947.0,65946.0,0.07524665]
[1727580694103,0.24499,65947.0,65946.0,0.07524665]
[1727580697870,0.3148326,65947.0,65946.0,0.07524665]
[1727580697874,0.24499,65947.0,65946.0,0.07524665]
[1727580698131,0.32639,65947.0,65946.0,0.07524665]
[1727580698599,0.32639,65947.0,65946.0,0.06524665]
[1727580698844,0.3717616,65947.0,65946.0,0.010827]
[1727580699068,0.42639,65947.0,65946.0,0.015827]
[1727580699295,0.57570527,65947.0,65946.0,0.015827]
[1727580699532,0.59947883,65947.0,65946.0,0.010827]
[1727580699777,0.69050721,65947.0,65946.0,0.010827]
[1727580700012,0.449839,65946.0,65945.0,0.000827]
[1727580700251,0.60622706,65946.0,65945.0,0.000827]
[1727580701380,0.7205091,65946.0,65945.0,0.001827]
[1727580702116,0.7315091,65946.0,65945.0,0.002827]
[1727580702350,0.61822706,65946.0,65945.0,0.002827]
[1727580703502,0.7088079,65946.0,65945.0,0.002827]
[1727580703972,0.61822706,65946.0,65945.0,0.002827]
[1727580704471,0.73254657,65946.0,65945.0,0.002827]
[1727580706467,0.64200197,65946.0,65945.0,0.002827]
[1727580708282,0.70987047,65946.0,65945.0,0.002827]
[1727580709169,0.71845478,65946.0,65945.0,0.002827]
[1727580712479,0.65058575,65946.0,65945.0,0.002827]
[1727580712915,0.71843555,65946.0,65945.0,0.002827]
[1727580715598,0.65058575,65946.0,65945.0,0.002827]
[1727580716444,0.74273179,65946.0,65945.0,0.002827]
[1727580718051,0.90763179,65946.0,65945.0,0.002827]
[1727580718251,0.93410811,65946.0,65945.0,0.002827]
[1727580718453,0.91847989,65946.0,65945.0,0.002827]
[1727580719851,0.80536484,65946.0,65945.0,0.002827]
[1727580720533,0.91847989,65946.0,65945.0,0.002827]
[1727580721896,0.80536484,65946.0,65945.0,0.002827]
[1727580722096,0.80336484,65946.0,65945.0,0.002827]
[1727580724918,0.80536484,65946.0,65945.0,0.002827]
[1727580725782,0.80336484,65946.0,65945.0,0.002827]
[1727580729761,0.8271417,65946.0,65945.0,0.002827]
[1727580730663,0.8291417,65946.0,65945.0,0.002827]
[1727580731134,0.80536484,65946.0,65945.0,0.002827]
[1727580734273,0.82914169,65946.0,65945.0,0.002827]
[1727580735125,0.80536484,65946.0,65945.0,0.002827]
[1727580738399,0.82914177,65946.0,65945.0,0.002827]
[1727580738825,0.96480278,65946.0,65945.0,0.002827]
[1727580739269,0.82914177,65946.0,65945.0,0.002827]
[1727580741894,0.81914177,65946.0,65945.0,0.002827]
[1727580742108,0.82914177,65946.0,65945.0,0.002827]
[1727580744508,0.005,65945.0,65944.0,0.14996]
[1727580744741,0.43485649,65945.0,65944.0,0.14996]
[1727580746532,0.44585649,65945.0,65944.0,0.15096]
[1727580746755,0.45585649,65945.0,65944.0,0.15196]
[1727580750153,0.5706916,65945.0,65944.0,0.15196]
[1727580753003,0.5706916,65945.0,65944.0,0.152787]
[1727580765183,0.5723456,65945.0,65944.0,0.152787]
[1727580788885,0.5723456,65945.0,65944.0,0.13746164]
[1727580796780,0.45751049,65945.0,65944.0,0.13746164]
[1727580796990,0.41713011,65945.0,65944.0,0.13746164]
[1727580813280,0.44090681,65945.0,65944.0,0.13746164]
[1727580828191,0.44090681,65945.0,65944.0,0.21486164]
[1727580828192,0.3210717,65945.0,65944.0,0.21486164]
[1727580828435,0.3210717,65945.0,65944.0,0.30756164]
[1727580828637,0.297295,65945.0,65944.0,0.30756164]
[1727580828867,0.45368306,65945.0,65944.0,0.30756164]
[1727580829090,0.59608774,65945.0,65944.0,0.30656164]
[1727580829339,0.60608774,65945.0,65944.0,0.30756164]
[1727580829560,0.45268306,65945.0,65944.0,0.30756164]
[1727580829778,0.59601764,65945.0,65944.0,0.30656164]
[1727580830026,0.58601764,65945.0,65944.0,0.30556164]
[1727580830273,0.60501764,65945.0,65944.0,0.30756164]
[1727580830500,0.60501764,65945.0,65944.0,0.30656164]
[1727580830740,0.45168306,65945.0,65944.0,0.30656164]
[1727580830942,0.61401764,65945.0,65944.0,0.30756164]
[1727580831610,0.46068306,65945.0,65944.0,0.30756164]
[1727580833285,0.46068306,65945.0,65944.0,0.21486164]
[1727580836448,0.46068306,65945.0,65944.0,0.21386164]
[1727580836449,0.45068306,65945.0,65944.0,0.21386164]
[1727580836637,0.63156866,65945.0,65944.0,0.21386164]
[1727580836871,0.63956866,65945.0,65944.0,0.21486164]
[1727580837948,0.63956866,65945.0,65944.0,0.21386164]
[1727580837949,0.62956866,65945.0,65944.0,0.21386164]
[1727580838176,0.63856866,65945.0,65944.0,0.21486164]
[1727580839020,0.44968306,65945.0,65944.0,0.21486164]
[1727580839228,0.66234423,65945.0,65944.0,0.21486164]
[1727580839434,0.66200929,65945.0,65944.0,0.21486164]
[1727580844318,0.63823372,65945.0,65944.0,0.21486164]
[1727580848105,0.66217086,65945.0,65944.0,0.21486164]
[1727580850750,0.47345877,65945.0,65944.0,0.21486164]
[1727580850933,0.31707071,65945.0,65944.0,0.21486164]
[1727580851169,0.293295,65945.0,65944.0,0.21486164]
[1727580868384,0.44658614,65945.0,65944.0,0.21486164]
[1727580868607,0.293295,65945.0,65944.0,0.21486164]
[1727580869691,0.4466025,65945.0,65944.0,0.21486164]
[1727580869910,0.293295,65945.0,65944.0,0.21486164]
[1727580871479,0.4466025,65945.0,65944.0,0.21486164]
[1727580872562,0.44664626,65945.0,65944.0,0.21486164]
[1727580873428,0.293295,65945.0,65944.0,0.21486164]
[1727580873844,0.44968306,65945.0,65944.0,0.21486164]
[1727580876714,0.293295,65945.0,65944.0,0.21486164]
[1727580877195,0.44668202,65945.0,65944.0,0.21486164]
[1727580877460,0.293295,65945.0,65944.0,0.21486164]
[1727580878151,0.44667613,65945.0,65944.0,0.21486164]
[1727580878390,0.293295,65945.0,65944.0,0.21486164]
[1727580879062,0.44667533,65945.0,65944.0,0.21486164]
[1727580879534,0.293295,65945.0,65944.0,0.21486164]
[1727580879785,0.36860751,65945.0,65944.0,0.21486164]
[1727580895387,0.293295,65945.0,65944.0,0.21486164]
[1727580900195,0.40813011,65945.0,65944.0,0.21486164]
[1727580901082,0.293295,65945.0,65944.0,0.21486164]
[1727580901327,0.44673046,65945.0,65944.0,0.21486164]
[1727580902259,0.43773046,65945.0,65944.0,0.21386164]
[1727580902508,0.42973046,65945.0,65944.0,0.21286164]
[1727580902946,0.42973046,65945.0,65944.0,0.21386164]
[1727580902947,0.43673046,65945.0,65944.0,0.21386164]
[1727580903619,0.44473046,65945.0,65944.0,0.21486164]
[1727580904776,0.46850587,65945.0,65944.0,0.21486164]
[1727580905610,0.46848963,65945.0,65944.0,0.21486164]
[1727580905840,0.44471422,65945.0,65944.0,0.21486164]
[1727580907245,0.291295,65945.0,65944.0,0.21486164]
[1727580908141,0.283295,65945.0,65944.0,0.21386164]
[1727580908361,0.283295,65945.0,65944.0,0.21486164]
[1727580908545,0.291295,65945.0,65944.0,0.21486164]
[1727580909272,0.30807043,65945.0,65944.0,0.21386164]
[1727580909512,0.31507043,65945.0,65944.0,0.21486164]
[1727580909733,0.30707043,65945.0,65944.0,0.21386164]
[1727580909949,0.31507043,65945.0,65944.0,0.21486164]
[1727580911281,0.291295,65945.0,65944.0,0.21486164]
[1727580912711,0.168295,65945.0,65944.0,0.31116164]
[1727580913174,0.168295,65945.0,65944.0,0.36846869]
[1727580913418,0.25917362,65945.0,65944.0,0.31116164]
[1727580913654,0.25917362,65945.0,65944.0,0.36846869]
[1727580913871,0.24417362,65945.0,65944.0,0.36646869]
[1727580914142,0.34917362,65945.0,65944.0,0.36646869]
[1727580914366,0.35617362,65945.0,65944.0,0.36746869]
[1727580914602,0.265295,65945.0,65944.0,0.36746869]
[1727580915074,0.260295,65945.0,65944.0,0.36746869]
[1727580915538,0.253295,65945.0,65944.0,0.36646869]
[1727580915751,0.32442918,65945.0,65944.0,0.36646869]
[1727580916450,0.258295,65945.0,65944.0,0.36646869]
[1727580917557,0.30369686,65945.0,65944.0,0.36646869]
[1727580919472,0.258295,65945.0,65944.0,0.36646869]
[1727580923099,0.255295,65945.0,65944.0,0.36646869]
[1727580923328,0.256295,65945.0,65944.0,0.36646869]
[1727580923559,0.253295,65945.0,65944.0,0.36646869]
[1727580923784,0.254295,65945.0,65944.0,0.36646869]
[1727580924004,0.255295,65945.0,65944.0,0.36646869]
[1727580924265,0.254295,65945.0,65944.0,0.36646869]
[1727580924489,0.254295,65945.0,65944.0,0.36946869]
[1727580924710,0.253295,65945.0,65944.0,0.36946869]
[1727580925410,0.101654,65945.0,65944.0,0.36946869]
[1727580925647,0.253295,65945.0,65944.0,0.36946869]
[1727580926084,0.253295,65945.0,65944.0,0.37146869]
[1727580930168,0.001654,65945.0,65944.0,0.36846869]
[1727580930398,0.101654,65945.0,65944.0,0.36746869]
[1727580931075,0.101654,65945.0,65944.0,0.36646869]
[1727580931304,0.253295,65945.0,65944.0,0.36746869]
[1727580936829,0.253295,65945.0,65944.0,0.51911169]
[1727580936830,0.001654,65945.0,65944.0,0.51911169]
[1727580938014,0.001654,65945.0,65944.0,0.36746869]
[1727580938798,0.101654,65945.0,65944.0,0.36746869]
[1727580939462,0.001654,65945.0,65944.0,0.36746869]
[1727580939646,0.001654,65945.0,65944.0,0.51911169]
[1727580941218,0.001654,65945.0,65944.0,0.51811169]
[1727580942558,0.001654,65945.0,65944.0,0.52211169]
[1727580942771,0.001654,65945.0,65944.0,0.52511169]
[1727580943459,0.001654,65946.0,65945.0,0.002]
[1727580943684,0.001654,65956.0,65950.0,0.15363]
[1727580943901,0.001654,65956.0,65950.0,0.32976174]
[1727580944118,0.001654,65956.0,65950.0,0.39797076]
[1727580944343,0.001654,65956.0,65950.0,0.42705927]
[1727580944650,0.001654,65956.0,65950.0,0.42905927]
[1727580945987,0.001654,65956.0,65950.0,0.43905927]
[1727580946431,0.001654,65956.0,65950.0,0.45005927]
[1727580946669,0.001654,65956.0,65950.0,0.44005927]
[1727580946869,0.001654,65956.0,65950.0,0.42905927]
[1727580947088,0.001654,65956.0,65950.0,0.45705927]
[1727580947315,0.001654,65956.0,65950.0,0.44305927]
[1727580947540,0.001654,65956.0,65950.0,0.45705927]
[1727580952287,0.001654,65956.0,65950.0,0.45505927]
[1727580953209,0.001654,65956.0,65950.0,0.44105927]
[1727580953455,0.001654,65956.0,65950.0,0.45705927]
[1727580954615,0.001654,65956.0,65950.0,0.44305927]
[1727580955054,0.001654,65956.0,65950.0,0.45705927]
[1727580968255,0.001654,65956.0,65950.0,0.45505927]
[1727580968483,0.001654,65956.0,65950.0,0.45705927]
[1727580969895,0.001654,65956.0,65950.0,0.45505927]
[1727580970179,0.001654,65956.0,65950.0,0.45705927]
[1727580970410,0.001654,65956.0,65950.0,0.57189438]
[1727580971083,0.001654,65956.0,65950.0,0.56989438]
[1727580971981,0.001654,65956.0,65950.0,0.47399438]
[1727580972254,0.001654,65956.0,65950.0,0.33007076]
[1727580972487,0.001654,65956.0,65950.0,0.44490587]
[1727580973413,0.001654,65956.0,65950.0,0.43090587]
[1727580973640,0.001654,65956.0,65950.0,0.42990587]
[1727580973859,0.001654,65956.0,65950.0,0.41690587]
[1727580974076,0.001654,65956.0,65950.0,0.43090587]
[1727580974299,0.001654,65956.0,65950.0,0.43990587]
[1727580974529,0.001654,65956.0,65950.0,0.41690587]
[1727580974775,0.001654,65956.0,65950.0,0.42590587]
[1727580975313,0.001654,65956.0,65950.0,0.41690587]
[1727580975510,0.097254,65956.0,65950.0,0.42590587]
[1727580975740,0.097254,65956.0,65950.0,0.34670587]
[1727580976462,0.097254,65956.0,65950.0,0.35470587]
[1727580976692,0.097254,65956.0,65950.0,0.34670587]
[1727580976923,0.097254,65956.0,65950.0,0.35470587]
[1727580980434,0.248872,65956.0,65950.0,0.35470587]
[1727580983302,0.097254,65956.0,65950.0,0.33770587]
[1727580983514,0.097254,65956.0,65950.0,0.35470587]
[1727580984150,0.097254,65956.0,65950.0,0.34570587]
[1727580984407,0.097254,65956.0,65950.0,0.34770587]
[1727580984609,0.097254,65956.0,65950.0,0.35670587]
[1727580992414,0.097254,65956.0,65950.0,0.46175556]
[1727580995771,0.097254,65956.0,65950.0,0.44275556]
[1727580995989,0.097254,65956.0,65950.0,0.45275556]
[1727580996261,0.097254,65956.0,65950.0,0.46275556]
[1727580996472,0.097254,65956.0,65950.0,0.45275556]
[1727580996909,0.097254,65956.0,65950.0,0.46375556]
[1727580999313,0.097254,65956.0,65950.0,0.35870587]
[1727581003131,0.001654,65956.0,65950.0,0.35870587]
[1727581013025,0.001654,65956.0,65950.0,0.34770587]
[1727581013483,0.001654,65956.0,65950.0,0.33770587]
[1727581013923,0.001654,65956.0,65950.0,0.34770587]
[1727581014352,0.001654,65956.0,65950.0,0.35770587]
[1727581014794,0.001654,65956.0,65950.0,0.33770587]
[1727581015027,0.001654,65956.0,65950.0,0.34970587]
[1727581016179,0.001654,65956.0,65950.0,0.36070587]
[1727581019560,0.04713317,65956.0,65950.0,0.36070587]
[1727581019779,0.001654,65956.0,65950.0,0.36070587]
[1727581020432,0.04713317,65956.0,65950.0,0.36070587]
[1727581021306,0.04713317,65956.0,65950.0,0.34870587]
[1727581021572,0.001654,65956.0,65950.0,0.34870587]
[1727581021757,0.04713317,65956.0,65950.0,0.34870587]
[1727581022219,0.04713317,65956.0,65950.0,0.35670587]
[1727581022665,0.04713317,65956.0,65950.0,0.34870587]
[1727581022899,0.04713317,65956.0,65950.0,0.33770587]
[1727581023328,0.04715346,65956.0,65950.0,0.34470587]
[1727581023781,0.001654,65956.0,65950.0,0.33770587]
[1727581024212,0.001654,65956.0,65950.0,0.34370587]
[1727581024892,0.001654,65956.0,65950.0,0.35070587]
[1727581025326,0.04715346,65956.0,65950.0,0.35070587]
[1727581027179,0.001654,65956.0,65950.0,0.63721289]
[1727581028533,0.001654,65956.0,65950.0,0.63021289]
[1727581028765,0.001654,65956.0,65950.0,0.63921289]
[1727581028987,0.001654,65956.0,65950.0,0.63321289]
[1727581029199,0.001654,65956.0,65950.0,0.63221289]
[1727581029625,0.001654,65956.0,65950.0,0.64421289]
[1727581029842,0.001654,65956.0,65950.0,0.65521289]
[1727581031373,0.001654,65956.0,65950.0,0.67097777]
[1727581031609,0.001654,65956.0,65950.0,0.65521289]
[1727581033687,0.001654,65956.0,65950.0,0.67100079]
[1727581035015,0.001654,65956.0,65950.0,0.65900079]
[1727581035239,0.001654,65956.0,65950.0,0.67100079]
[1727581035678,0.001654,65956.0,65950.0,0.65900079]
[1727581035905,0.001654,65956.0,65950.0,0.62421289]
[1727581036132,0.001654,65956.0,65950.0,0.64821289]
[1727581036590,0.001654,65956.0,65950.0,0.63721289]
[1727581036815,0.001654,65956.0,65950.0,0.64921289]
[1727581037471,0.001654,65956.0,65950.0,0.66500482]
[1727581039532,0.001654,65956.0,65950.0,0.66506899]
[1727581043822,0.001654,65956.0,65950.0,0.64921289]
[1727581050439,0.001654,65956.0,65950.0,0.65121289]
[1727581051558,0.001654,65956.0,65950.0,0.64921289]
[1727581076070,0.001654,65956.0,65950.0,0.65121289]
[1727581076282,0.001654,65956.0,65950.0,0.64921289]
[1727581078354,0.001654,65956.0,65950.0,0.65121289]
[1727581078606,0.001654,65956.0,65950.0,0.64921289]
[1727581082289,0.001654,65956.0,65950.0,0.65121289]
[1727581083210,0.001654,65956.0,65950.0,0.64921289]
[1727581083444,0.001654,65956.0,65950.0,0.65121289]
[1727581084143,0.001654,65956.0,65950.0,0.64921289]
[1727581086316,0.001654,65956.0,65950.0,0.55421289]
[1727581089329,0.091754,65956.0,65950.0,0.24787076]
[1727581089576,0.0901,65952.0,65950.0,0.36270587]
[1727581090080,0.0901,65952.0,65951.0,0.213083]
[1727581090537,0.0901,65952.0,65951.0,0.27236676]
[1727581091235,0.0901,65952.0,65951.0,0.28436676]
[1727581092206,0.0901,65952.0,65951.0,0.29536676]
[1727581093127,0.090927,65952.0,65951.0,0.29536676]
[1727581098225,0.090927,65952.0,65951.0,0.41020187]
[1727581102843,0.000827,65952.0,65951.0,0.41020187]
[1727581105454,0.000827,65952.0,65951.0,0.39920187]
[1727581105681,0.000827,65952.0,65951.0,0.41120187]
[1727581106135,0.000827,65952.0,65951.0,0.39920187]
[1727581106381,0.000827,65952.0,65951.0,0.41120187]
[1727581106855,0.000827,65952.0,65951.0,0.39920187]
[1727581107103,0.000827,65952.0,65951.0,0.41220187]
[1727581113399,0.000827,65952.0,65951.0,0.59810116]
[1727581116071,0.000827,65952.0,65951.0,0.58610116]
[1727581116290,0.000827,65952.0,65951.0,0.58510116]
[1727581116523,0.000827,65952.0,65951.0,0.59810116]
[1727581118166,0.000827,65952.0,65951.0,0.59975516]
[1727581119095,0.000827,65952.0,65951.0,0.58775516]
[1727581119338,0.000827,65952.0,65951.0,0.58875516]
[1727581119594,0.000827,65952.0,65951.0,0.60275516]
[1727581122523,0.000827,65952.0,65951.0,0.58875516]
[1727581122763,0.000827,65952.0,65951.0,0.57475516]
[1727581123010,0.000827,65952.0,65951.0,0.58875516]
[1727581123499,0.000827,65952.0,65951.0,0.60275516]
[1727581123983,0.000827,65952.0,65951.0,0.58875516]
[1727581124226,0.000827,65952.0,65951.0,0.60275516]
[1727581125450,0.000827,65952.0,65951.0,0.48792005]
[1727581125671,0.000827,65952.0,65951.0,0.60275516]
[1727581133259,0.000827,65952.0,65951.0,0.49305587]
[1727581134180,0.000827,65952.0,65951.0,0.47905587]
[1727581134702,0.000827,65952.0,65951.0,0.47705587]
[1727581135329,0.000827,65952.0,65951.0,0.47505587]
[1727581135750,0.000827,65952.0,65951.0,0.48605587]
[1727581156693,0.000827,65952.0,65951.0,0.48637968]
[1727581165111,0.000827,65952.0,65951.0,0.41017968]
[1727581201783,0.000827,65952.0,65951.0,0.42710659]
[1727581204863,0.000827,65952.0,65951.0,0.41017968]
[1727581209591,0.000827,65952.0,65951.0,0.38917968]
[1727581210018,0.000827,65952.0,65951.0,0.40117968]
[1727581210226,0.000827,65952.0,65951.0,0.41217968]
[1727581210662,0.000827,65952.0,65951.0,0.40117968]
[1727581212250,0.000827,65952.0,65951.0,0.41317968]
[1727581230977,0.000827,65952.0,65951.0,0.53765376]
[1727581234242,0.000827,65952.0,65951.0,0.41317968]
[1727581249166,0.000827,65952.0,65951.0,0.38917968]
[1727581249412,0.000827,65952.0,65951.0,0.40117968]
[1727581249634,0.000827,65952.0,65951.0,0.41517968]
[1727581249869,0.000827,65952.0,65951.0,0.38917968]
[1727581250356,0.000827,65952.0,65951.0,0.40317968]
[1727581250590,0.000827,65952.0,65951.0,0.41717968]
[1727581267093,0.000827,65952.0,65951.0,0.43429127]
[1727581267319,0.000827,65952.0,65951.0,0.41717968]
[1727581268327,0.000827,65952.0,65951.0,0.40317968]
[1727581268794,0.000827,65952.0,65951.0,0.40017968]
[1727581269929,0.000827,65952.0,65951.0,0.41117968]
[1727581270580,0.000827,65952.0,65951.0,0.35189592]
[1727581270711,0.000827,65952.0,65951.0,0.41936532]
[1727581285072,0.000827,65952.0,65951.0,0.5514935]
[1727581286142,0.000827,65952.0,65951.0,0.41936532]
[1727581292670,0.000827,65952.0,65951.0,0.30453021]
[1727581292910,0.000827,65952.0,65951.0,0.41936532]
[1727581294126,0.096527,65952.0,65951.0,0.15290321]
[1727581294275,0.35366658,65952.0,65951.0,0.15290321]
[1727581294473,0.47066014,65952.0,65951.0,0.15290321]
[1727581294679,0.47066014,65952.0,65951.0,0.08543381]
[1727581295487,0.47066014,65952.0,65951.0,0.07443381]
[1727581295691,0.47066014,65952.0,65951.0,0.06343381]
[1727581296145,0.56167308,65952.0,65951.0,0.06343381]
[1727581296920,0.56167224,65952.0,65951.0,0.06343381]
[1727581297147,0.47066014,65952.0,65951.0,0.06343381]
[1727581297590,0.323952,65952.0,65951.0,0.06343381]
[1727581297827,0.58456371,65952.0,65951.0,0.06343381]
[1727581298254,0.49355161,65952.0,65951.0,0.06343381]
[1727581298697,0.58456371,65952.0,65951.0,0.06343381]
[1727581299159,0.43873385,65952.0,65951.0,0.06343381]
[1727581299307,0.34772175,65952.0,65951.0,0.06343381]
[1727581300301,0.4159166,65952.0,65951.0,0.06343381]
[1727581300900,0.34772175,65952.0,65951.0,0.06343381]
[1727581301322,0.323952,65952.0,65951.0,0.06343381]
[1727581301525,0.39213511,65952.0,65951.0,0.06343381]
[1727581301722,0.39213361,65952.0,65951.0,0.06343381]
[1727581303198,0.323952,65952.0,65951.0,0.06343381]
[1727581304246,0.36938956,65952.0,65951.0,0.06343381]
[1727581305731,0.39315977,65952.0,65951.0,0.06343381]
[1727581306373,0.31735977,65952.0,65951.0,0.06343381]
[1727581308012,0.27192221,65952.0,65951.0,0.06343381]
[1727581324360,0.17622221,65952.0,65951.0,0.06343381]
[1727581325030,0.17622221,65952.0,65951.0,0.12193278]
[1727581327109,0.152452,65952.0,65951.0,0.12193278]
[1727581330223,0.19788956,65952.0,65951.0,0.12193278]
[1727581332684,0.152452,65952.0,65951.0,0.12193278]
[1727581334263,0.22063361,65952.0,65951.0,0.12193278]
[1727581336302,0.299804,65952.0,65951.0,0.12193278]
[1727581336990,0.39071282,65952.0,65951.0,0.12193278]
[1727581338332,0.41344003,65952.0,65951.0,0.12193278]
[1727581339635,0.299804,65952.0,65951.0,0.12193278]
[1727581339845,0.299804,65952.0,65951.0,0.12293278]
[1727581340692,0.299804,65952.0,65951.0,0.12493278]
[1727581343793,0.299804,65952.0,65951.0,0.12193278]
[1727581346403,0.30004665,65952.0,65951.0,0.12193278]
[1727581349310,0.3238161,65952.0,65951.0,0.12193278]
[1727581352824,0.43772142,65952.0,65951.0,0.12193278]
[1727581353493,0.3238161,65952.0,65951.0,0.12193278]
[1727581353718,0.43772142,65952.0,65951.0,0.12193278]
[1727581354195,0.28609642,65952.0,65951.0,0.12193278]